[Event "DVM U12w 2023"]
[Site "Magdeburg"]
[Date "2023.12.27"]
[Round "2"]
[White "Böhrer, Lea Marie"]
[Black "Gelbach, Julietta"]
[Result "0-1"]
[WhiteElo "939"]
[BlackElo "887"]
[PlyCount "102"]
[EventDate "2022.12.27"]
[EventType "team-tourn"]
[EventRounds "7"]
[EventCountry "GER"]
[TimeControl "40/5400+30:1800+30"]
[WhiteClock "1:22:57"]
[BlackClock "1:30:23"]

1. e4 {[%emt 0:00:02]} e5 {[%emt 0:00:04]} 2. Nc3 {[%emt 0:00:08]} Nf6 {[%emt 0:00:10]} 3. Nf3 {[%emt 0:00:12]} Nc6 {[%emt 0:00:08]} 4. Bb5 {[%emt 0:00:15]} d6 {[%emt 0:00:24]} 5. d3 {[%emt 0:00:58]} h6 {[%emt 0:00:20]} 6. Bxc6+ {[%emt 0:00:16]} bxc6 {[%emt 0:00:13]} 7. O-O {[%emt 0:02:23]} Bg4 {[%emt 0:01:37]} 8. Be3 {[%emt 0:00:28]} Be7 {[%emt 0:01:17]} 9. h3 {[%emt 0:00:11]} Be6 {[%emt 0:00:35]} 10. Re1 {[%emt 0:00:38]} O-O {[%emt 0:00:24]} 11. d4 {[%emt 0:00:16]} Bc4 {[%emt 0:02:05]} 12. b3 {[%emt 0:00:44]} Be6 {[%emt 0:01:14]} 13. dxe5 {[%emt 0:00:22]} dxe5 {[%emt 0:00:26]} 14. Nxe5 {[%emt 0:00:18]} Bb4 {[%emt 0:01:01]} 15. Nxc6 {[%emt 0:00:32]} Qxd1 {[%emt 0:00:21]} 16. Rexd1 {[%emt 0:00:10]} Bxc3 {[%emt 0:00:57]} 17. Rab1 {[%emt 0:01:28]} Nxe4 {[%emt 0:00:18]} 18. Ne7+ {[%emt 0:00:44]} Kh8 {[%emt 0:00:16]} 19. f3 {[%emt 0:00:46]} Ng3 {[%emt 0:00:21]} 20. Bf4 {[%emt 0:01:20]} Nf5 {[%emt 0:00:47]} 21. Nxf5 {[%emt 0:00:47]} Bxf5 {[%emt 0:00:13]} 22. g4 {[%emt 0:00:50]} Bxc2 {[%emt 0:00:29]} 23. Rdc1 {[%emt 0:00:38]} Bxb1 {[%emt 0:00:19]} 24. Rxc3 {[%emt 0:00:08]} Bxa2 {[%emt 0:00:27]} 25. Rxc7 {[%emt 0:00:15]} Bxb3 {[%emt 0:00:21]} 26. Rb7 {[%emt 0:01:08]} Bd5 {[%emt 0:00:29]} 27. Rc7 {[%emt 0:01:00]} Bxf3 {[%emt 0:00:27]} 28. Bd6 {[%emt 0:00:21]} Rfd8 {[%emt 0:00:28]} 29. Be7 {[%emt 0:00:52]} Rd2 {[%emt 0:00:28]} 30. Rc1 {[%emt 0:01:17]} a5 {[%emt 0:00:30]} 31. g5 {[%emt 0:00:31]} a4 {[%emt 0:00:26]} 32. Ra1 {[%emt 0:01:26]} hxg5 {[%emt 0:01:04]} 33. Bxg5 {[%emt 0:00:23]} Rd1+ {[%emt 0:00:22]} 34. Rxd1 {[%emt 0:00:20]} Bxd1 {[%emt 0:00:15]} 35. Bc1 {[%emt 0:00:14]} a3 {[%emt 0:00:13]} 36. Bxa3 {[%emt 0:01:07]} Rxa3 {[%emt 0:00:27]} 37. Kf2 {[%emt 0:00:11]} g5 {[%emt 0:00:07]} 38. Ke1 {[%emt 0:00:18]} Ba4 {[%emt 0:00:26]} 39. Kf2 {[%emt 0:00:19]} Kg7 {[%emt 0:00:13]} 40. Kg2 {[%emt 0:00:25]} f5 {[%emt 0:00:09]} 41. h4 {[%emt 0:33:12]} gxh4 {[%emt 0:30:56]} 42. Kh2 {[%emt 0:00:29]} Kg6 {[%emt 0:00:03]} 43. Kh1 {[%emt 0:00:12]} Kg5 {[%emt 0:00:09]} 44. Kg2 {[%emt 0:00:08]} f4 {[%emt 0:00:15]} 45. Kh2 {[%emt 0:00:39]} Rc3 {[%emt 0:00:55]} 46. Kg2 {[%emt 0:00:12]} Kg4 {[%emt 0:00:15]} 47. Kh2 {[%emt 0:00:09]} h3 {[%emt 0:00:13]} 48. Kg1 {[%emt 0:01:02]} Kg3 {[%emt 0:00:19]} 49. Kf1 {[%emt 0:00:06]} Rc2 {[%emt 0:01:00]} 50. Kg1 {[%emt 0:01:09]} h2+ {[%emt 0:00:32]} 51. Kh1 {[%emt 0:01:04]} Rc1# {[%emt 0:00:09] normal} 0-1

[Event "DVM U12w 2023"]
[Site "Magdeburg"]
[Date "2023.12.27"]
[Round "2"]
[White "Rabus, Luise"]
[Black "Mauhs, Helena"]
[Result "0-1"]
[WhiteElo "913"]
[BlackElo "1194"]
[PlyCount "59"]
[EventDate "2022.12.27"]
[EventType "team-tourn"]
[EventRounds "7"]
[EventCountry "GER"]
[TimeControl "40/5400+30:1800+30"]
[WhiteClock "1:07:47"]
[BlackClock "1:01:14"]

1. e4 {[%emt 0:00:01]} e5 {[%emt 0:00:09]} 2. Nf3 {[%emt 0:00:06]} Nc6 {[%emt 0:00:04]} 3. Bc4 {[%emt 0:00:13]} Bc5 {[%emt 0:00:06]} 4. d3 {[%emt 0:00:18]} Nf6 {[%emt 0:00:19]} 5. c3 {[%emt 0:00:28]} d6 {[%emt 0:01:07]} 6. h3 {[%emt 0:00:36]} Be6 {[%emt 0:00:31]} 7. Bb3 {[%emt 0:00:12]} Qd7 {[%emt 0:00:58]} 8. Bxe6 {[%emt 0:02:34]} fxe6 {[%emt 0:00:18]} 9. O-O {[%emt 0:00:36]} d5 {[%emt 0:00:34]} 10. Re1 {[%emt 0:01:56]} O-O {[%emt 0:01:57]} 11. d4 {[%emt 0:02:30]} exd4 {[%emt 0:01:45]} 12. cxd4 {[%emt 0:00:50]} Bb4 {[%emt 0:00:37]} 13. Nbd2 {[%emt 0:01:08]} dxe4 {[%emt 0:02:14]} 14. Ne5 {[%emt 0:01:00]} Qxd4 {[%emt 0:04:08]} 15. Nxc6 {[%emt 0:00:33]} bxc6 {[%emt 0:00:13]} 16. Nb3 {[%emt 0:03:33]} Qxd1 {[%emt 0:02:44]} 17. Rxd1 {[%emt 0:00:54]} Rad8 {[%emt 0:00:15]} 18. Bd2 {[%emt 0:01:37]} Bxd2 {[%emt 0:00:41]} 19. Nxd2 {[%emt 0:00:54]} Rd6 {[%emt 0:02:40]} 20. Nc4 {[%emt 0:05:01]} Rd5 {[%emt 0:02:39]} 21. Ne3 {[%emt 0:02:31]} Rb5 {[%emt 0:03:26]} 22. b3 {[%emt 0:01:29]} Nd5 {[%emt 0:02:15]} 23. Ng4 {[%emt 0:02:31]} Nc3 {[%emt 0:02:26]} 24. Rd7 {[%emt 0:01:03]} Nd5 {[%emt 0:01:10]} 25. Rc1 {[%emt 0:00:30]} Rb6 {[%emt 0:01:42]} 26. Ne5 {[%emt 0:00:35]} e3 {[%emt 0:04:44]} 27. Kf1 {[%emt 0:00:53]} Rxf2+ {[%emt 0:01:38]} 28. Ke1 {[%emt 0:01:01]} h6 {[%emt 0:01:05]} 29. Nxc6 {[%emt 0:00:48]} Nf4 {[%emt 0:01:21]} 30. Ne5 {[%emt 0:01:22] normal} 0-1

[Event "DVM U12w 2023"]
[Site "Magdeburg"]
[Date "2023.12.27"]
[Round "2"]
[White "Satheesh, Dharshini"]
[Black "Xu, Dorothea Sicheng"]
[Result "0-1"]
[WhiteElo "871"]
[BlackElo "1118"]
[PlyCount "57"]
[EventDate "2022.12.27"]
[EventType "team-tourn"]
[EventRounds "7"]
[EventCountry "GER"]
[TimeControl "40/5400+30:1800+30"]
[WhiteClock "1:08:19"]
[BlackClock "0:59:16"]

1. e4 {[%emt 0:00:03]} e5 {[%emt 0:00:05]} 2. Nf3 {[%emt 0:00:08]} Nc6 {[%emt 0:00:06]} 3. Bc4 {[%emt 0:00:19]} Nf6 {[%emt 0:00:07]} 4. Nc3 {[%emt 0:00:26]} Bc5 {[%emt 0:01:17]} 5. d3 {[%emt 0:00:34]} h6 {[%emt 0:00:24]} 6. Bd2 {[%emt 0:00:51]} O-O {[%emt 0:00:45]} 7. O-O {[%emt 0:00:30]} d6 {[%emt 0:00:43]} 8. h3 {[%emt 0:00:22]} Re8 {[%emt 0:01:18]} 9. a3 {[%emt 0:01:25]} a6 {[%emt 0:01:43]} 10. b4 {[%emt 0:01:18]} Ba7 {[%emt 0:00:25]} 11. b5 {[%emt 0:00:58]} axb5 {[%emt 0:02:13]} 12. Bxb5 {[%emt 0:00:35]} Be6 {[%emt 0:02:11]} 13. Qe2 {[%emt 0:02:23]} Bc5 {[%emt 0:03:26]} 14. a4 {[%emt 0:03:31]} Re7 {[%emt 0:05:13]} 15. Bxc6 {[%emt 0:02:06]} bxc6 {[%emt 0:00:21]} 16. Be3 {[%emt 0:05:42]} Bb4 {[%emt 0:01:12]} 17. Bd2 {[%emt 0:03:41]} Qe8 {[%emt 0:04:30]} 18. Nd5 {[%emt 0:02:11]} cxd5 {[%emt 0:02:37]} 19. Bxb4 {[%emt 0:00:29]} dxe4 {[%emt 0:06:27]} 20. dxe4 {[%emt 0:00:36]} Rxa4 {[%emt 0:00:57]} 21. Rxa4 {[%emt 0:03:05]} Qxa4 {[%emt 0:00:11]} 22. Bc3 {[%emt 0:00:58]} Bc4 {[%emt 0:01:09]} 23. Qd2 {[%emt 0:01:19]} Bxf1 {[%emt 0:00:33]} 24. Kxf1 {[%emt 0:00:20]} Nxe4 {[%emt 0:01:16]} 25. Qd3 {[%emt 0:00:57]} Nxc3 {[%emt 0:01:00]} 26. Qxc3 {[%emt 0:00:08]} Qb5+ {[%emt 0:01:24]} 27. Kg1 {[%emt 0:00:19]} Qb1+ {[%emt 0:00:55]} 28. Kh2 {[%emt 0:00:12]} Qf1 {[%emt 0:02:46]} 29. Qd2 {[%emt 0:01:15] normal} 0-1

[Event "DVM U12w 2023"]
[Site "Magdeburg"]
[Date "2023.12.27"]
[Round "2"]
[White "Gelbach, Amelia"]
[Black "Khachaturyan, Viktoria"]
[Result "0-1"]
[WhiteElo "841"]
[BlackElo "987"]
[PlyCount "36"]
[EventDate "2022.12.27"]
[EventType "team-tourn"]
[EventRounds "7"]
[EventCountry "GER"]
[TimeControl "40/5400+30:1800+30"]
[WhiteClock "1:32:29"]
[BlackClock "1:29:10"]

1. e4 {[%emt 0:00:02]} e5 {[%emt 0:00:10]} 2. Nf3 {[%emt 0:00:05]} Nc6 {[%emt 0:00:05]} 3. Bc4 {[%emt 0:00:09]} Bc5 {[%emt 0:00:18]} 4. c3 {[%emt 0:00:10]} Nf6 {[%emt 0:00:18]} 5. d3 {[%emt 0:00:07]} O-O {[%emt 0:00:56]} 6. d4 {[%emt 0:00:45]} exd4 {[%emt 0:00:24]} 7. cxd4 {[%emt 0:00:14]} Bb4+ {[%emt 0:00:15]} 8. Bd2 {[%emt 0:00:20]} Bxd2+ {[%emt 0:00:20]} 9. Nbxd2 {[%emt 0:00:10]} d5 {[%emt 0:00:35]} 10. exd5 {[%emt 0:00:18]} Nxd5 {[%emt 0:00:24]} 11. O-O {[%emt 0:00:28]} Nf4 {[%emt 0:00:16]} 12. Re1 {[%emt 0:00:15]} Nxd4 {[%emt 0:00:25]} 13. Nb3 {[%emt 0:01:56]} Nxf3+ {[%emt 0:01:03]} 14. Qxf3 {[%emt 0:00:25]} Qg5 {[%emt 0:01:12]} 15. g3 {[%emt 0:00:22]} Nh3+ {[%emt 0:01:35]} 16. Kh1 {[%emt 0:00:35]} Bg4 {[%emt 0:01:03]} 17. Qxb7 {[%emt 0:00:20]} Rab8 {[%emt 0:00:40]} 18. Qxc7 {[%emt 0:00:20]} Bf3# {[%emt 0:00:21] normal} 0-1

[Event "DVM U12w 2023"]
[Site "Magdeburg"]
[Date "2023.12.27"]
[Round "2"]
[White "Subocz, Emma"]
[Black "Funke, Luise"]
[Result "0-1"]
[WhiteElo "827"]
[BlackElo "1018"]
[PlyCount "86"]
[EventDate "2022.12.27"]
[EventType "team-tourn"]
[EventRounds "7"]
[EventCountry "GER"]
[TimeControl "40/5400+30:1800+30"]
[WhiteClock "1:12:50"]
[BlackClock "1:23:23"]

1. e4 {[%emt 0:00:03]} e5 {[%emt 0:00:04]} 2. f4 {[%emt 0:00:07]} exf4 {[%emt 0:00:17]} 3. Nf3 {[%emt 0:00:08]} Nc6 {[%emt 0:01:15]} 4. d4 {[%emt 0:00:24]} Nf6 {[%emt 0:00:38]} 5. Nc3 {[%emt 0:00:13]} d5 {[%emt 0:01:19]} 6. Bd3 {[%emt 0:01:30]} Bb4 {[%emt 0:02:17]} 7. Qe2 {[%emt 0:00:38]} O-O {[%emt 0:00:44]} 8. O-O {[%emt 0:00:57]} Bg4 {[%emt 0:00:22]} 9. Bxf4 {[%emt 0:13:17]} Nxd4 {[%emt 0:01:02]} 10. Qd1 {[%emt 0:01:46]} Nxf3+ {[%emt 0:00:56]} 11. Rxf3 {[%emt 0:00:28]} Bxc3 {[%emt 0:00:34]} 12. bxc3 {[%emt 0:00:21]} dxe4 {[%emt 0:00:32]} 13. Bxe4 {[%emt 0:00:22]} Nxe4 {[%emt 0:00:36]} 14. Qf1 {[%emt 0:01:10]} Bxf3 {[%emt 0:00:36]} 15. Qxf3 {[%emt 0:00:18]} Re8 {[%emt 0:02:54]} 16. Rd1 {[%emt 0:01:43]} Qf6 {[%emt 0:01:21]} 17. c4 {[%emt 0:01:48]} Nc3 {[%emt 0:01:36]} 18. Ra1 {[%emt 0:01:13]} Ne2+ {[%emt 0:00:26]} 19. Kf2 {[%emt 0:00:32]} Nxf4 {[%emt 0:00:13]} 20. Qxb7 {[%emt 0:01:05]} Nh3+ {[%emt 0:01:18]} 21. Kg3 {[%emt 0:02:01]} Re3+ {[%emt 0:01:27]} 22. Qf3 {[%emt 0:00:48]} Rxf3+ {[%emt 0:00:18]} 23. gxf3 {[%emt 0:00:10]} Ng5 {[%emt 0:00:22]} 24. f4 {[%emt 0:01:14]} Ne4+ {[%emt 0:00:21]} 25. Kf3 {[%emt 0:01:06]} Re8 {[%emt 0:00:25]} 26. Re1 {[%emt 0:00:25]} Nd2+ {[%emt 0:00:48]} 27. Kf2 {[%emt 0:00:19]} Rxe1 {[%emt 0:00:08]} 28. Kxe1 {[%emt 0:00:08]} Qxf4 {[%emt 0:00:07]} 29. Kd1 {[%emt 0:00:23]} h5 {[%emt 0:00:30]} 30. Ke2 {[%emt 0:00:28]} h4 {[%emt 0:00:21]} 31. h3 {[%emt 0:00:07]} Qh2+ {[%emt 0:00:17]} 32. Kd3 {[%emt 0:00:19]} Nf1 {[%emt 0:00:58]} 33. Kd4 {[%emt 0:00:20]} Qxh3 {[%emt 0:00:08]} 34. Kd5 {[%emt 0:00:18]} Qe6+ {[%emt 0:00:46]} 35. Kc5 {[%emt 0:00:23]} h3 {[%emt 0:00:13]} 36. c3 {[%emt 0:00:14]} h2 {[%emt 0:00:14]} 37. a4 {[%emt 0:00:18]} h1=Q {[%emt 0:00:18]} 38. Kd4 {[%emt 0:00:26]} Qh4+ {[%emt 0:00:18]} 39. Kd3 {[%emt 0:00:12]} Qeh3+ {[%emt 0:00:15]} 40. Kc2 {[%emt 0:00:19]} Qf2+ {[%emt 0:00:20]} 41. Kb3 {[%emt 0:30:12]} Qb6+ {[%emt 0:30:39]} 42. Ka2 {[%emt 0:00:24]} Qh2+ {[%emt 0:00:17]} 43. Ka3 {[%emt 0:00:33]} Qbb2# {[%emt 0:00:07] normal} 0-1

[Event "DVM U12w 2023"]
[Site "Magdeburg"]
[Date "2023.12.27"]
[Round "2"]
[White "He, Siqi"]
[Black "Goy, Isabella"]
[Result "0-1"]
[WhiteElo "812"]
[BlackElo "880"]
[PlyCount "96"]
[EventDate "2022.12.27"]
[EventType "team-tourn"]
[EventRounds "7"]
[EventCountry "GER"]
[TimeControl "40/5400+30:1800+30"]
[WhiteClock "1:29:25"]
[BlackClock "1:26:32"]

1. e4 {[%emt 0:00:01]} e5 {[%emt 0:00:08]} 2. Nf3 {[%emt 0:00:03]} Nc6 {[%emt 0:00:10]} 3. Bc4 {[%emt 0:00:12]} Nf6 {[%emt 0:00:21]} 4. d3 {[%emt 0:00:18]} Bb4+ {[%emt 0:00:43]} 5. Nc3 {[%emt 0:00:21]} Bxc3+ {[%emt 0:00:27]} 6. bxc3 {[%emt 0:00:15]} Na5 {[%emt 0:00:24]} 7. Bb3 {[%emt 0:00:43]} Nxb3 {[%emt 0:01:00]} 8. cxb3 {[%emt 0:00:18]} d6 {[%emt 0:00:17]} 9. h3 {[%emt 0:00:33]} h6 {[%emt 0:00:16]} 10. O-O {[%emt 0:00:23]} O-O {[%emt 0:00:08]} 11. d4 {[%emt 0:00:54]} Nxe4 {[%emt 0:01:38]} 12. dxe5 {[%emt 0:00:32]} dxe5 {[%emt 0:01:21]} 13. Nxe5 {[%emt 0:00:20]} Qxd1 {[%emt 0:00:40]} 14. Rxd1 {[%emt 0:00:08]} Re8 {[%emt 0:01:04]} 15. Nd3 {[%emt 0:01:18]} Rd8 {[%emt 0:00:38]} 16. Bf4 {[%emt 0:00:51]} Nxc3 {[%emt 0:00:49]} 17. Bxc7 {[%emt 0:00:36]} Rd7 {[%emt 0:01:32]} 18. Rac1 {[%emt 0:01:42]} Nxd1 {[%emt 0:00:26]} 19. Rxd1 {[%emt 0:01:25]} Rxc7 {[%emt 0:00:17]} 20. Ne5 {[%emt 0:01:15]} Re7 {[%emt 0:01:32]} 21. Re1 {[%emt 0:00:31]} f6 {[%emt 0:00:45]} 22. Nf3 {[%emt 0:00:38]} Rxe1+ {[%emt 0:00:27]} 23. Nxe1 {[%emt 0:00:39]} Bf5 {[%emt 0:00:53]} 24. g4 {[%emt 0:00:16]} Bb1 {[%emt 0:00:19]} 25. a4 {[%emt 0:00:15]} Re8 {[%emt 0:00:20]} 26. Nf3 {[%emt 0:00:37]} Bc2 {[%emt 0:00:46]} 27. Nd4 {[%emt 0:00:17]} Re1+ {[%emt 0:01:32]} 28. Kg2 {[%emt 0:00:16]} Be4+ {[%emt 0:00:52]} 29. Kg3 {[%emt 0:00:16]} Rd1 {[%emt 0:00:38]} 30. Nf5 {[%emt 0:00:22]} Bxf5 {[%emt 0:00:19]} 31. gxf5 {[%emt 0:00:40]} Rg1+ {[%emt 0:00:42]} 32. Kh2 {[%emt 0:00:17]} Rg5 {[%emt 0:00:33]} 33. h4 {[%emt 0:01:02]} Rxf5 {[%emt 0:00:26]} 34. Kg3 {[%emt 0:00:15]} a5 {[%emt 0:00:15]} 35. f4 {[%emt 0:00:27]} Rd5 {[%emt 0:00:40]} 36. Kg4 {[%emt 0:00:52]} Rd3 {[%emt 0:00:24]} 37. h5 {[%emt 0:00:41]} Kf7 {[%emt 0:00:20]} 38. f5 {[%emt 0:00:54]} Rxb3 {[%emt 0:00:22]} 39. Kh4 {[%emt 0:00:52]} b5 {[%emt 0:00:07]} 40. axb5 {[%emt 0:00:15]} Rxb5 {[%emt 0:00:12]} 41. Kg4 {[%emt 0:30:11]} Rb4+ {[%emt 0:30:14]} 42. Kg3 {[%emt 0:00:10]} a4 {[%emt 0:00:16]} 43. Kf3 {[%emt 0:00:29]} a3 {[%emt 0:00:14]} 44. Kg3 {[%emt 0:00:18]} a2 {[%emt 0:00:10]} 45. Kf3 {[%emt 0:00:03]} a1=Q {[%emt 0:00:56]} 46. Ke3 {[%emt 0:00:02]} Qa3+ {[%emt 0:00:25]} 47. Kd2 {[%emt 0:01:20]} Rb2+ {[%emt 0:00:08]} 48. Kd1 {[%emt 0:00:02]} Qa1# {[%emt 0:00:52] normal} 0-1

[Event "DVM U12w 2023"]
[Site "Magdeburg"]
[Date "2023.12.27"]
[Round "2"]
[White "Strahl, Nele"]
[Black "Weißleder, Emia"]
[Result "0-1"]
[WhiteElo "783"]
[BlackElo "1041"]
[PlyCount "59"]
[EventDate "2022.12.27"]
[EventType "team-tourn"]
[EventRounds "7"]
[EventCountry "GER"]
[TimeControl "40/5400+30:1800+30"]
[WhiteClock "1:05:58"]
[BlackClock "1:03:27"]

1. e4 {[%emt 0:00:03]} c5 {[%emt 0:00:09]} 2. Nf3 {[%emt 0:00:12]} Nc6 {[%emt 0:00:09]} 3. Nc3 {[%emt 0:00:16]} d6 {[%emt 0:00:10]} 4. Bc4 {[%emt 0:00:21]} Nf6 {[%emt 0:00:11]} 5. O-O {[%emt 0:00:22]} g6 {[%emt 0:00:13]} 6. d3 {[%emt 0:00:23]} Bg7 {[%emt 0:00:09]} 7. Bf4 {[%emt 0:01:08]} O-O {[%emt 0:00:33]} 8. Re1 {[%emt 0:00:28]} Bg4 {[%emt 0:01:33]} 9. Be3 {[%emt 0:01:11]} Nb4 {[%emt 0:02:02]} 10. h3 {[%emt 0:01:20]} Bxf3 {[%emt 0:00:51]} 11. Qxf3 {[%emt 0:01:16]} Nxc2 {[%emt 0:00:17]} 12. Rac1 {[%emt 0:01:30]} Nxe1 {[%emt 0:00:16]} 13. Rxe1 {[%emt 0:00:17]} Nd7 {[%emt 0:04:27]} 14. Qd1 {[%emt 0:04:26]} e6 {[%emt 0:07:23]} 15. d4 {[%emt 0:01:11]} cxd4 {[%emt 0:02:46]} 16. Bxd4 {[%emt 0:00:22]} Bxd4 {[%emt 0:00:12]} 17. Qxd4 {[%emt 0:00:34]} e5 {[%emt 0:00:31]} 18. Qxd6 {[%emt 0:00:45]} Rc8 {[%emt 0:02:06]} 19. Be2 {[%emt 0:03:42]} Rc6 {[%emt 0:02:21]} 20. Qd5 {[%emt 0:01:53]} Rf6 {[%emt 0:01:03]} 21. Bg4 {[%emt 0:01:03]} Qb6 {[%emt 0:01:28]} 22. Rf1 {[%emt 0:00:46]} Qxb2 {[%emt 0:01:51]} 23. Bxd7 {[%emt 0:02:06]} Qxc3 {[%emt 0:00:23]} 24. Qxb7 {[%emt 0:01:02]} Qd4 {[%emt 0:01:57]} 25. a4 {[%emt 0:01:07]} Rd8 {[%emt 0:00:46]} 26. Bc6 {[%emt 0:02:51]} Rfd6 {[%emt 0:00:41]} 27. Bd5 {[%emt 0:03:02]} R6d7 {[%emt 0:02:22]} 28. Qb5 {[%emt 0:01:16]} Qb6 {[%emt 0:03:59]} 29. Qd3 {[%emt 0:01:51]} Rc7 {[%emt 0:00:44]} 30. Qg3 {[%emt 0:02:48] normal} 0-1

[Event "DVM U12w 2023"]
[Site "Magdeburg"]
[Date "2023.12.28"]
[Round "3"]
[White "Burchardi, Helena"]
[Black "Wolf, Helena"]
[Result "1-0"]
[WhiteElo "1370"]
[BlackElo "1188"]
[PlyCount "53"]
[EventDate "2022.12.27"]
[EventType "team-tourn"]
[EventRounds "7"]
[EventCountry "GER"]
[TimeControl "40/5400+30:1800+30"]
[WhiteClock "1:02:07"]
[BlackClock "0:26:53"]

1. e4 {[%emt 0:00:04]} e5 {[%emt 0:00:06]} 2. Nf3 {[%emt 0:00:09]} d6 {[%emt 0:00:09]} 3. d4 {[%emt 0:00:09]} exd4 {[%emt 0:00:08]} 4. Nxd4 {[%emt 0:00:08]} Nf6 {[%emt 0:00:09]} 5. Nc3 {[%emt 0:00:22]} Be7 {[%emt 0:00:16]} 6. Bc4 {[%emt 0:00:25]} O-O {[%emt 0:00:21]} 7. O-O {[%emt 0:01:03]} Re8 {[%emt 0:01:34]} 8. Be3 {[%emt 0:00:36]} Nbd7 {[%emt 0:01:43]} 9. a4 {[%emt 0:03:18]} c6 {[%emt 0:08:31]} 10. Ba2 {[%emt 0:01:03]} a6 {[%emt 0:02:12]} 11. h3 {[%emt 0:01:49]} Qc7 {[%emt 0:01:31]} 12. Bf4 {[%emt 0:04:39]} Bf8 {[%emt 0:04:09]} 13. Re1 {[%emt 0:05:06]} Ne5 {[%emt 0:10:34]} 14. Nf3 {[%emt 0:02:52]} Bd7 {[%emt 0:07:20]} 15. Ng5 {[%emt 0:04:00]} h6 {[%emt 0:08:22]} 16. Bxe5 {[%emt 0:02:59]} hxg5 {[%emt 0:00:19]} 17. Bxf6 {[%emt 0:01:08]} gxf6 {[%emt 0:00:17]} 18. Qd3 {[%emt 0:01:38]} Rad8 {[%emt 0:02:59]} 19. e5 {[%emt 0:00:52]} Rxe5 {[%emt 0:02:21]} 20. Qg6+ {[%emt 0:01:12]} Kh8 {[%emt 0:00:43]} 21. Qxf6+ {[%emt 0:01:30]} Kh7 {[%emt 0:00:31]} 22. Bxf7 {[%emt 0:01:23]} Bf5 {[%emt 0:18:10]} 23. Rxe5 {[%emt 0:00:37]} dxe5 {[%emt 0:00:06]} 24. Qxf5+ {[%emt 0:00:12]} Kh8 {[%emt 0:00:24]} 25. Qf6+ {[%emt 0:00:27]} Bg7 {[%emt 0:01:22]} 26. Qg6 {[%emt 0:00:35]} Rd6 {[%emt 0:02:20]} 27. Be6 {[%emt 0:03:37] normal} 1-0

[Event "DVM U12w 2023"]
[Site "Magdeburg"]
[Date "2023.12.28"]
[Round "3"]
[White "Will, Elina"]
[Black "John, Linnea"]
[Result "1/2-1/2"]
[WhiteElo "1325"]
[BlackElo "1393"]
[PlyCount "52"]
[EventDate "2022.12.27"]
[EventType "team-tourn"]
[EventRounds "7"]
[EventCountry "GER"]
[TimeControl "40/5400+30:1800+30"]
[WhiteClock "1:12:41"]
[BlackClock "0:31:10"]

1. e4 {[%emt 0:00:03]} c5 {[%emt 0:00:04]} 2. Nf3 {[%emt 0:00:04]} Nc6 {[%emt 0:00:05]} 3. d4 {[%emt 0:00:09]} cxd4 {[%emt 0:00:05]} 4. Nxd4 {[%emt 0:00:06]} g6 {[%emt 0:00:06]} 5. Nc3 {[%emt 0:00:04]} Bg7 {[%emt 0:00:04]} 6. Be3 {[%emt 0:00:05]} Nf6 {[%emt 0:00:05]} 7. Bc4 {[%emt 0:00:17]} Qa5 {[%emt 0:00:22]} 8. O-O {[%emt 0:00:20]} O-O {[%emt 0:00:20]} 9. h3 {[%emt 0:02:51]} d6 {[%emt 0:00:46]} 10. a3 {[%emt 0:04:58]} Bd7 {[%emt 0:02:38]} 11. Nb3 {[%emt 0:03:00]} Qc7 {[%emt 0:01:33]} 12. Qd2 {[%emt 0:00:59]} Ne5 {[%emt 0:02:35]} 13. Be2 {[%emt 0:00:08]} Bc6 {[%emt 0:05:45]} 14. f4 {[%emt 0:01:20]} Ned7 {[%emt 0:02:25]} 15. Bd3 {[%emt 0:00:54]} b6 {[%emt 0:05:50]} 16. f5 {[%emt 0:01:47]} Ne5 {[%emt 0:02:39]} 17. Rae1 {[%emt 0:05:14]} d5 {[%emt 0:14:37]} 18. exd5 {[%emt 0:04:09]} Nxd5 {[%emt 0:02:19]} 19. Nxd5 {[%emt 0:00:24]} Bxd5 {[%emt 0:00:10]} 20. Bf4 {[%emt 0:00:11]} Bxb3 {[%emt 0:05:12]} 21. cxb3 {[%emt 0:01:07]} Qc5+ {[%emt 0:01:27]} 22. Be3 {[%emt 0:00:27]} Qd5 {[%emt 0:12:24]} 23. Bc2 {[%emt 0:00:29]} Qxd2 {[%emt 0:01:19]} 24. Bxd2 {[%emt 0:00:07]} Rac8 {[%emt 0:01:02]} 25. Bc3 {[%emt 0:00:24]} Nc6 {[%emt 0:07:53]} 26. Bxg7 {[%emt 0:01:12]} Kxg7 {[%emt 0:00:35] normal} 1/2-1/2

[Event "DVM U12w 2023"]
[Site "Magdeburg"]
[Date "2023.12.28"]
[Round "3"]
[White "Shynkar, Daria"]
[Black "Rafikova, Ailin"]
[Result "1/2-1/2"]
[WhiteElo "1316"]
[BlackElo "1399"]
[PlyCount "53"]
[EventDate "2022.12.27"]
[EventType "team-tourn"]
[EventRounds "7"]
[EventCountry "GER"]
[TimeControl "40/5400+30:1800+30"]
[WhiteClock "0:18:36"]
[BlackClock "0:12:13"]

1. d4 {[%emt 0:00:01]} Nf6 {[%emt 0:00:07]} 2. c4 {[%emt 0:00:04]} g6 {[%emt 0:00:07]} 3. Nc3 {[%emt 0:00:05]} Bg7 {[%emt 0:00:09]} 4. e4 {[%emt 0:00:07]} d6 {[%emt 0:00:32]} 5. Be3 {[%emt 0:00:10]} Ng4 {[%emt 0:04:35]} 6. Qd2 {[%emt 0:06:36]} Nxe3 {[%emt 0:07:14]} 7. Qxe3 {[%emt 0:00:11]} Nc6 {[%emt 0:01:14]} 8. Nge2 {[%emt 0:08:41]} e5 {[%emt 0:06:11]} 9. d5 {[%emt 0:01:43]} Ne7 {[%emt 0:05:53]} 10. f3 {[%emt 0:07:53]} f5 {[%emt 0:02:56]} 11. O-O-O {[%emt 0:04:24]} a6 {[%emt 0:02:52]} 12. Kb1 {[%emt 0:04:25]} b6 {[%emt 0:07:45]} 13. g3 {[%emt 0:05:55]} Bd7 {[%emt 0:03:33]} 14. Nc1 {[%emt 0:10:43]} Ng8 {[%emt 0:04:00]} 15. Nd3 {[%emt 0:06:31]} Bh6 {[%emt 0:03:03]} 16. Qf2 {[%emt 0:02:03]} fxe4 {[%emt 0:08:54]} 17. fxe4 {[%emt 0:01:42]} Nf6 {[%emt 0:03:19]} 18. h3 {[%emt 0:04:42]} O-O {[%emt 0:03:22]} 19. Qg2 {[%emt 0:01:30]} Rf7 {[%emt 0:08:28]} 20. Be2 {[%emt 0:01:49]} Qe7 {[%emt 0:03:00]} 21. Rhf1 {[%emt 0:03:08]} b5 {[%emt 0:02:16]} 22. cxb5 {[%emt 0:01:33]} axb5 {[%emt 0:00:20]} 23. Nb4 {[%emt 0:00:15]} Rb8 {[%emt 0:04:23]} 24. g4 {[%emt 0:01:36]} Bf4 {[%emt 0:01:19]} 25. Qf2 {[%emt 0:02:54]} g5 {[%emt 0:03:35]} 26. Qa7 {[%emt 0:00:39]} Qd8 {[%emt 0:02:10]} 27. a3 {[%emt 0:06:04] normal} 1/2-1/2